[Event "CZE Extraliga 2019-20"]
[Site "Czech Republic"]
[Date "2019.10.12"]
[Round "1.5"]
[White "Chytilek, Roman"]
[Black "UNI6 Rydl Jiri FM"]
[Result "1/2-1/2"]
[ECO "C10"]
[WhiteElo "2330"]
[BlackElo "2422"]
[Annotator "NA"]
[PlyCount "101"]
[EventDate "2019.09.15"]
[EventType "team-tourn"]
[EventCountry "CZE"]
[SourceTitle "playchess.com"]
[Source "ChessBase"]
[SourceQuality "1"]
[WhiteTeam "Duras"]
[TimeControl "40/5400+30:1800+30"]

1. e4 {[%emt 0:00:00]} e6 {[%emt 0:00:00]} 2. d4 {[%emt 0:00:00]} d5 {[%emt 0:00:01]} 3. Nd2 {[%emt 0:00:00]} dxe4 {[%emt 0:00:58]} 4. Nxe4 {[%emt 0:00:06]} Nd7 {[%emt 0:00:12]} 5. g3 {[%emt 0:00:17]} b6 {[%emt 0:00:33]} 6. Bg2 {[%emt 0:01:55]} Rb8 {[%emt 0:00:17]} 7. Nc3 {[%emt 0:09:52]} Ngf6 {[%emt 0:04:56]} 8. Nb5 {[%emt 0:17:17]} Bb7 {[%emt 0:01:17]} 9. Bxb7 {[%emt 0:08:42]} Rxb7 {[%emt 0:00:09]} 10. Qf3 {[%emt 0:00:11]} Qc8 {[%emt 0:00:23]} 11. Ne2 {[%emt 0:08:09]} c6 {[%emt 0:02:36]} 12. Nbc3 {[%emt 0:00:11]} Be7 {[%emt 0:00:14]} 13. O-O {[%emt 0:00:57]} O-O {[%emt 0:00:16]} 14. a4 {[%emt 0:02:17]} h6 {[%emt 0:06:03]} 15. b3 {[%emt 0:12:09]} a6 {[%emt 0:05:08]} 16. Bb2 {[%emt 0:06:06]} b5 {[%emt 0:07:31]} 17. Rfe1 {[%emt 0:02:40]} b4 {[%emt 0:05:41]} 18. Ne4 {[%emt 0:00:54]} Nxe4 {[%emt 0:00:37]} 19. Qxe4 {[%emt 0:00:04]} Nf6 {[%emt 0:00:14]} 20. Qf3 {[%emt 0:01:18]} Nd5 {[%emt 0:01:15]} 21. Nc1 {[%emt 0:14:37]} Rd8 {[%emt 0:16:15]} 22. Nd3 {[%emt 0:00:49]} Nf6 {[%emt 0:01:31]} 23. Rac1 {[%emt 0:02:36]} Rd5 {[%emt 0:02:06]} 24. Nf4 {[%emt 0:02:37]} Rf5 {[%emt 0:06:33]} 25. Re5 {[%emt 0:02:03]} Rxe5 {[%emt 0:09:29]} 26. dxe5 {[%emt 0:00:04]} Nd5 {[%emt 0:00:14]} 27. Nh5 {[%emt 0:00:31]} Bf8 {[%emt 0:00:19]} 28. Re1 {[%emt 0:03:08]} Ne7 {[%emt 0:11:59]} 29. Qg4 {[%emt 0:00:31]} Nf5 {[%emt 0:01:03]} 30. h4 {[%emt 0:01:07]} c5 {[%emt 0:01:30]} 31. Re4 {[%emt 0:02:47]} Kh8 {[%emt 0:01:00]} 32. Nf4 {[%emt 0:00:33]} Rd7 {[%emt 0:06:02]} 33. Nd3 {[%emt 0:00:18]} Ne7 {[%emt 0:00:58]} 34. Rc4 {[%emt 0:00:30]} Nd5 {[%emt 0:00:44]} 35. Bc1 {[%emt 0:01:27]} Nb6 {[%emt 0:01:19]} 36. Rf4 {[%emt 0:00:29]} c4 {[%emt 0:00:53]} 37. bxc4 {[%emt 0:00:21]} Nxa4 {[%emt 0:01:03]} 38. Qh5 {[%emt 0:00:49]} Nc5 {[%emt 0:02:47]} 39. Nxc5 {[%emt 0:00:29]} Bxc5 {[%emt 0:00:19]} 40. Qf3 {[%emt 0:00:33]} Qb7 {[%emt 0:01:34]} 41. Qh5 {[%emt 0:06:28]} Bf8 {[%emt 0:07:23]} 42. Be3 {[%emt 0:10:49]} a5 {[%emt 0:04:09]} 43. c5 {[%emt 0:01:04]} Kg8 {[%emt 0:00:35]} 44. Rc4 {[%emt 0:00:58]} Qc6 {[%emt 0:05:34]} 45. Qg4 {[%emt 0:01:48]} Rd5 {[%emt 0:01:20]} 46. Qe4 {[%emt 0:02:36]} h5 {[%emt 0:04:47]} 47. Kh2 {[%emt 0:02:29]} Be7 {[%emt 0:03:01]} 48. Kh3 {[%emt 0:04:00]} Bd8 {[%emt 0:01:29]} 49. g4 {[%emt 0:01:51]} hxg4+ {[%emt 0:01:18]} 50. Kxg4 {[%emt 0:00:20]} Bc7 {[%emt 0:00:46]} 51. f4 {[%emt 0:00:45]} 1/2-1/2

[Event "CZE Extraliga 2019-20"]
[Site "Czech Republic"]
[Date "2019.10.12"]
[Round "1.6"]
[White "Sahidi, Samir"]
[Black "Obsivac, Josef"]
[Result "1-0"]
[ECO "A05"]
[WhiteElo "2374"]
[BlackElo "2285"]
[Annotator "NA"]
[PlyCount "171"]
[EventDate "2019.09.15"]
[EventType "team-tourn"]
[EventCountry "CZE"]
[SourceTitle "playchess.com"]
[Source "ChessBase"]
[SourceQuality "1"]
[TimeControl "40/5400+30:1800+30"]

1. Nf3 {[%emt 0:00:00]} Nf6 {[%emt 0:00:00]} 2. c4 {[%emt 0:00:15]} g6 {[%emt 0:00:00]} 3. g3 {[%emt 0:01:25]} Bg7 {[%emt 0:00:04]} 4. Bg2 {[%emt 0:00:17]} O-O {[%emt 0:00:18]} 5. O-O {[%emt 0:00:27]} d6 {[%emt 0:00:12]} 6. Nc3 {[%emt 0:02:21]} Nc6 {[%emt 0:05:28]} 7. d3 {[%emt 0:08:23]} e5 {[%emt 0:02:21]} 8. Rb1 {[%emt 0:00:14]} h6 {[%emt 0:09:33]} 9. b4 {[%emt 0:03:17]} Be6 {[%emt 0:00:34]} 10. b5 {[%emt 0:16:09]} Ne7 {[%emt 0:00:15]} 11. Bb2 {[%emt 0:01:30]} Ne8 {[%emt 0:33:31]} 12. Ne1 {[%emt 0:06:15]} c6 {[%emt 0:01:40]} 13. Ba3 {[%emt 0:01:10]} f5 {[%emt 0:04:36]} 14. Qb3 {[%emt 0:02:38]} Rf7 {[%emt 0:02:50]} 15. Nc2 {[%emt 0:02:17]} g5 {[%emt 0:00:46]} 16. bxc6 {[%emt 0:01:08]} bxc6 {[%emt 0:00:12]} 17. Rfc1 {[%emt 0:04:21]} Rc8 {[%emt 0:01:56]} 18. Qa4 {[%emt 0:03:32]} e4 {[%emt 0:06:59]} 19. Bb2 {[%emt 0:05:22]} d5 {[%emt 0:03:11]} 20. Rd1 {[%emt 0:06:37]} Qc7 {[%emt 0:07:12]} 21. Qa6 {[%emt 0:03:13]} Nd6 {[%emt 0:04:27]} 22. c5 {[%emt 0:04:21]} Ne8 {[%emt 0:01:58]} 23. dxe4 {[%emt 0:03:30]} fxe4 {[%emt 0:00:40]} 24. Nd4 {[%emt 0:03:50]} Bd7 {[%emt 0:00:04]} 25. e3 {[%emt 0:02:19]} Nf6 {[%emt 0:01:43]} 26. Ba1 {[%emt 0:00:50]} Rcf8 {[%emt 0:05:21]} 27. Rb7 {[%emt 0:04:34]} Qc8 {[%emt 0:00:02]} 28. Qxa7 {[%emt 0:01:01]} Ng6 {[%emt 0:02:25]} 29. Rdb1 {[%emt 0:01:24]} Qe8 {[%emt 0:02:00]} 30. h3 {[%emt 0:03:58]} Ne5 {[%emt 0:00:01]} 31. Rb8 {[%emt 0:01:26]} Bc8 {[%emt 0:00:39]} 32. Qa8 {[%emt 0:00:59]} Nfd7 {[%emt 0:00:22]} 33. R8b2 {[%emt 0:05:20]} Nxc5 {[%emt 0:00:50]} 34. Rc2 {[%emt 0:00:33]} Ncd3 {[%emt 0:00:34]} 35. Nd1 {[%emt 0:00:36]} c5 {[%emt 0:01:25]} 36. Qxd5 {[%emt 0:01:07]} cxd4 {[%emt 0:00:16]} 37. Bxd4 {[%emt 0:00:21]} Bf5 {[%emt 0:01:20]} 38. g4 {[%emt 0:00:50]} Bg6 {[%emt 0:00:14]} 39. Rb6 {[%emt 0:00:33]} Bh7 {[%emt 0:01:09]} 40. Nc3 {[%emt 0:00:43]} Ne1 {[%emt 0:00:42]} 41. Re6 {[%emt 0:12:05]} N5f3+ {[%emt 0:04:54]} 42. Bxf3 {[%emt 0:01:19]} Nxf3+ {[%emt 0:00:28]} 43. Kf1 {[%emt 0:00:29]} Qb8 {[%emt 0:02:53]} 44. Bxg7 {[%emt 0:03:06]} Kxg7 {[%emt 0:00:47]} 45. Rd6 {[%emt 0:01:53]} Rf6 {[%emt 0:06:10]} 46. Rxf6 {[%emt 0:04:08]} Rxf6 {[%emt 0:00:03]} 47. Nb5 {[%emt 0:00:56]} Rf7 {[%emt 0:00:42]} 48. Ke2 {[%emt 0:02:08]} Qe5 {[%emt 0:11:06]} 49. Qxe5+ {[%emt 0:01:59]} Nxe5 {[%emt 0:00:02]} 50. a4 {[%emt 0:00:44]} Nd3 {[%emt 0:02:41]} 51. Kf1 {[%emt 0:00:08]} Rb7 {[%emt 0:01:43]} 52. Rc8 {[%emt 0:01:32]} Bg6 {[%emt 0:02:43]} 53. Kg1 {[%emt 0:01:14]} Bf7 {[%emt 0:00:12]} 54. Rd8 {[%emt 0:02:02]} Ne5 {[%emt 0:00:44]} 55. Kg2 {[%emt 0:01:33]} Rd7 {[%emt 0:00:26]} 56. Rb8 {[%emt 0:01:43]} Nf3 {[%emt 0:02:02]} 57. Nc3 {[%emt 0:00:34]} Ra7 {[%emt 0:01:06]} 58. Rb4 {[%emt 0:00:35]} Be8 {[%emt 0:00:19]} 59. Nxe4 {[%emt 0:01:01]} Nh4+ {[%emt 0:00:28]} 60. Kg3 {[%emt 0:00:12]} Bxa4 {[%emt 0:00:23]} 61. f4 {[%emt 0:00:42]} Bc6 {[%emt 0:00:50]} 62. fxg5 {[%emt 0:00:18]} hxg5 {[%emt 0:00:20]} 63. Nxg5 {[%emt 0:00:06]} Ng6 {[%emt 0:00:19]} 64. Ne6+ {[%emt 0:00:31]} Kf6 {[%emt 0:00:25]} 65. Nd4 {[%emt 0:00:25]} Bd5 {[%emt 0:01:15]} 66. Rb6+ {[%emt 0:00:12]} Kf7 {[%emt 0:00:19]} 67. Rb5 {[%emt 0:01:32]} Ba8 {[%emt 0:00:58]} 68. Rf5+ {[%emt 0:00:41]} Kg8 {[%emt 0:01:07]} 69. Rc5 {[%emt 0:00:41]} Ra2 {[%emt 0:00:13]} 70. h4 {[%emt 0:00:23]} Kf7 {[%emt 0:00:48]} 71. h5 {[%emt 0:00:10]} Ne7 {[%emt 0:00:02]} 72. Re5 {[%emt 0:00:51]} Nd5 {[%emt 0:00:40]} 73. g5 {[%emt 0:00:40]} Nc3 {[%emt 0:00:08]} 74. Rf5+ {[%emt 0:00:09]} Ke7 {[%emt 0:00:20]} 75. g6 {[%emt 0:00:42]} Rg2+ {[%emt 0:00:10]} 76. Kf4 {[%emt 0:00:38]} Nd5+ {[%emt 0:01:25]} 77. Ke5 {[%emt 0:00:03]} Nxe3 {[%emt 0:00:18]} 78. Rf7+ {[%emt 0:00:04]} Ke8 {[%emt 0:00:14]} 79. Kf6 {[%emt 0:00:31]} Ng4+ {[%emt 0:01:10]} 80. Kg7 {[%emt 0:00:09]} Be4 {[%emt 0:00:36]} 81. Ne6 {[%emt 0:01:39]} Ne5 {[%emt 0:00:25]} 82. Rf8+ {[%emt 0:00:23]} Ke7 {[%emt 0:00:02]} 83. Nf4 {[%emt 0:00:12]} Rg4 {[%emt 0:00:33]} 84. Rf6 {[%emt 0:00:30]} Nxg6 {[%emt 0:01:04]} 85. Nxg6+ {[%emt 0:00:31]} Kd8 {[%emt 0:00:33]} 86. h6 {[%emt 0:00:08]} 1-0

[Event "CZE Extraliga 2019-20"]
[Site "Czech Republic"]
[Date "2019.10.12"]
[Round "1.6"]
[White "Jurcik, Martin"]
[Black "Vyskocil, Neklan"]
[Result "1/2-1/2"]
[ECO "A04"]
[WhiteElo "2360"]
[BlackElo "2295"]
[Annotator "NA"]
[PlyCount "33"]
[EventDate "2019.09.15"]
[EventType "team-tourn"]
[EventCountry "CZE"]
[SourceTitle "playchess.com"]
[Source "ChessBase"]
[SourceQuality "1"]
[BlackTeam "Duras"]
[TimeControl "40/5400+30:1800+30"]

1. Nf3 {[%emt 0:00:00]} g6 {[%emt 0:00:21]} 2. e4 {[%emt 0:06:53]} Bg7 {[%emt 0:01:04]} 3. d4 {[%emt 0:00:28]} d6 {[%emt 0:00:19]} 4. Bc4 {[%emt 0:00:39]} Nf6 {[%emt 0:00:24]} 5. Qe2 {[%emt 0:02:06]} c6 {[%emt 0:00:51]} 6. Bb3 {[%emt 0:02:21]} O-O {[%emt 0:04:22]} 7. O-O {[%emt 0:03:05]} Na6 {[%emt 0:08:17]} 8. h3 {[%emt 0:03:19]} d5 {[%emt 0:05:43]} 9. Nc3 {[%emt 0:21:02]} e6 {[%emt 0:08:15]} 10. e5 {[%emt 0:08:39]} Nd7 {[%emt 0:01:18]} 11. Bg5 {[%emt 0:08:58]} Qe8 {[%emt 0:06:05]} 12. Nd1 {[%emt 0:08:37]} f6 {[%emt 0:09:09]} 13. exf6 {[%emt 0:04:24]} Nxf6 {[%emt 0:00:10]} 14. Nc3 {[%emt 0:12:26]} Nh5 {[%emt 0:03:38]} 15. Qe3 {[%emt 0:01:32]} Qf7 {[%emt 0:05:16]} 16. Ne2 {[%emt 0:04:36]} Nc7 {[%emt 0:05:20]} 17. Bh6 {[%emt 0:03:25]} 1/2-1/2

[Event "CZE Extraliga 2019-20"]
[Site "Czech Republic"]
[Date "2019.10.12"]
[Round "1.6"]
[White "Konopka, Michal"]
[Black "Vlasak, Lukas"]
[Result "0-1"]
[ECO "D02"]
[WhiteElo "2345"]
[BlackElo "2423"]
[Annotator "NA"]
[PlyCount "68"]
[EventDate "2019.09.15"]
[EventType "team-tourn"]
[EventCountry "CZE"]
[SourceTitle "playchess.com"]
[Source "ChessBase"]
[SourceQuality "1"]
[WhiteTeam "Kromeriz"]
[BlackTeam "Turnov"]
[TimeControl "40/5400+30:1800+30"]

1. Nf3 {[%emt 0:00:00]} d5 {[%emt 0:00:00]} 2. d4 {[%emt 0:00:00]} Nf6 {[%emt 0:00:15]} 3. c4 {[%emt 0:00:14]} e6 {[%emt 0:00:17]} 4. g3 {[%emt 0:00:12]} dxc4 {[%emt 0:02:34]} 5. Qa4+ {[%emt 0:05:05]} Nbd7 {[%emt 0:03:39]} 6. Bg2 {[%emt 0:00:10]} a6 {[%emt 0:00:18]} 7. Nc3 {[%emt 0:00:32]} Be7 {[%emt 0:02:13]} 8. Qxc4 {[%emt 0:18:45]} b5 {[%emt 0:03:13]} 9. Qd3 {[%emt 0:00:44]} Bb7 {[%emt 0:00:21]} 10. O-O {[%emt 0:00:07]} O-O {[%emt 0:00:29]} 11. Bg5 {[%emt 0:04:58]} c5 {[%emt 0:00:20]} 12. dxc5 {[%emt 0:00:45]} Nxc5 {[%emt 0:01:22]} 13. Qe3 {[%emt 0:04:47]} b4 {[%emt 0:16:57]} 14. Bxf6 {[%emt 0:02:23]} Bxf6 {[%emt 0:07:54]} 15. Qxc5 {[%emt 0:00:37]} bxc3 {[%emt 0:00:09]} 16. bxc3 {[%emt 0:05:19]} Rc8 {[%emt 0:03:37]} 17. Qa7 {[%emt 0:02:33]} Rc7 {[%emt 0:04:00]} 18. Rfd1 {[%emt 0:07:02]} Qc8 {[%emt 0:04:07]} 19. Qb6 {[%emt 0:06:44]} Rxc3 {[%emt 0:13:41]} 20. Rab1 {[%emt 0:16:06]} Be4 {[%emt 0:04:47]} 21. Rb4 {[%emt 0:02:48]} Bd5 {[%emt 0:08:12]} 22. Ra4 {[%emt 0:08:11]} Bc4 {[%emt 0:04:09]} 23. Bf1 {[%emt 0:03:38]} Bb5 {[%emt 0:05:37]} 24. Re4 {[%emt 0:00:43]} Ra3 {[%emt 0:01:44]} 25. Nd4 {[%emt 0:01:34]} Rxa2 {[%emt 0:02:58]} 26. Nxb5 {[%emt 0:02:03]} Rb2 {[%emt 0:01:09]} 27. Ra4 {[%emt 0:04:56]} axb5 {[%emt 0:02:40]} 28. Ra7 {[%emt 0:00:22]} Qc2 {[%emt 0:06:28]} 29. Rdd7 {[%emt 0:01:14]} Rb1 {[%emt 0:00:46]} 30. Qe3 {[%emt 0:01:33]} b4 {[%emt 0:00:27]} 31. Rxf7 {[%emt 0:00:15]} Rxf1+ {[%emt 0:00:07]} 32. Kxf1 {[%emt 0:00:05]} Qd1+ {[%emt 0:00:06]} 33. Kg2 {[%emt 0:00:13]} Qd5+ {[%emt 0:00:05]} 34. f3 {[%emt 0:00:15]} Rxf7 {[%emt 0:00:06]} 0-1

[Event "CZE Extraliga 2019-20"]
[Site "Czech Republic"]
[Date "2019.10.12"]
[Round "1.6"]
[White "Rabatin, Jakub"]
[Black "Petr, Martin"]
[Result "0-1"]
[ECO "D03"]
[WhiteElo "2303"]
[BlackElo "2460"]
[Annotator "ChessBase"]
[PlyCount "66"]
[EventDate "2019.09.15"]
[EventType "team-tourn"]
[EventCountry "CZE"]
[SourceTitle "playchess.com"]
[Source "ChessBase"]
[SourceQuality "1"]
[BlackTeam "Pardubice"]
[TimeControl "40/5400+30:1800+30"]

1. d4 {[%emt 0:00:09]} Nf6 {[%emt 0:00:53]} 2. Nf3 {[%emt 0:00:11]} g6 {[%emt 0:00:22]} 3. Bg5 {[%emt 0:00:20]} Bg7 {[%emt 0:01:04]} 4. c3 {[%emt 0:00:46]} O-O {[%emt 0:05:51]} 5. Nbd2 {[%emt 0:00:15]} d5 {[%emt 0:02:25]} 6. e3 {[%emt 0:00:40]} b6 {[%emt 0:01:39]} 7. Bd3 {[%emt 0:03:46]} Bb7 {[%emt 0:00:26]} 8. Ne5 {[%emt 0:04:17]} Ne4 {[%emt 0:07:42]} 9. Nxe4 {[%emt 0:15:47]} dxe4 {[%emt 0:00:11]} 10. Bc4 {[%emt 0:00:14]} Nd7 {[%emt 0:02:13]} 11. Bf4 {[%emt 0:05:36]} e6 {[%emt 0:04:45]} 12. O-O {[%emt 0:09:41]} Nxe5 {[%emt 0:04:22]} 13. dxe5 {[%emt 0:04:27]} Qxd1 {[%emt 0:22:56]} 14. Rfxd1 {[%emt 0:00:05]} Rfd8 {[%emt 0:00:04]} 15. Kf1 {[%emt 0:12:38]} h6 {[%emt 0:02:29]} 16. h4 {[%emt 0:16:32]} Bf8 {[%emt 0:03:40]} 17. a4 {[%emt 0:03:08]} a6 {[%emt 0:01:55]} 18. h5 {[%emt 0:03:01]} gxh5 {[%emt 0:01:43]} 19. Ke2 {[%emt 0:00:32]} Rxd1 {[%emt 0:01:41]} 20. Rxd1 {[%emt 0:00:14]} Bc6 {[%emt 0:00:04]} 21. Bb3 {[%emt 0:02:30]} Kg7 {[%emt 0:07:25]} 22. Bc2 {[%emt 0:01:44]} b5 {[%emt 0:01:06]} 23. a5 {[%emt 0:05:56]} b4 {[%emt 0:03:15]} 24. Rd4 {[%emt 0:01:06]} b3 {[%emt 0:05:25]} 25. Bb1 {[%emt 0:05:51]} Rb8 {[%emt 0:04:58]} 26. Kd1 {[%emt 0:01:09]} Rb5 {[%emt 0:01:29]} 27. Bxe4 {[%emt 0:02:17]} Bxe4 {[%emt 0:00:09]} 28. Rxe4 {[%emt 0:00:02]} Rxa5 {[%emt 0:00:06]} 29. Rd4 {[%emt 0:00:42]} Ra2 {[%emt 0:03:53]} 30. Rd2 {[%emt 0:00:40]} a5 {[%emt 0:00:04]} 31. e4 {[%emt 0:00:13]} a4 {[%emt 0:00:48]} 32. Re2 {[%emt 0:00:20]} a3 {[%emt 0:00:26]} 33. Bc1 {[%emt 0:00:36]} Ra1 {[%emt 0:00:47]} 0-1

[Event "CZE Extraliga 2019-20"]
[Site "Czech Republic"]
[Date "2019.10.12"]
[Round "1.7"]
[White "Jirovsky, Milos"]
[Black "Rojicek, Vojtech"]
[Result "1-0"]
[ECO "E60"]
[WhiteElo "2452"]
[BlackElo "2389"]
[Annotator "ChessBase"]
[PlyCount "77"]
[EventDate "2019.09.15"]
[EventType "team-tourn"]
[EventCountry "CZE"]
[SourceTitle "playchess.com"]
[Source "ChessBase"]
[SourceQuality "1"]
[WhiteTeam "Pardubice"]
[TimeControl "40/5400+30:1800+30"]

1. Nf3 {[%emt 0:00:00]} Nf6 {[%emt 0:00:27]} 2. c4 {[%emt 0:00:00]} g6 {[%emt 0:00:11]} 3. b3 {[%emt 0:00:02]} Bg7 {[%emt 0:02:18]} 4. Bb2 {[%emt 0:00:08]} O-O {[%emt 0:00:21]} 5. g3 {[%emt 0:00:16]} d6 {[%emt 0:06:02]} 6. d4 {[%emt 0:01:53]} c6 {[%emt 0:00:02]} 7. Bg2 {[%emt 0:00:09]} Qa5+ {[%emt 0:02:27]} 8. Qd2 {[%emt 0:04:35]} Qxd2+ {[%emt 0:02:18]} 9. Nbxd2 {[%emt 0:00:24]} a5 {[%emt 0:00:08]} 10. O-O {[%emt 0:03:40]} Re8 {[%emt 0:01:15]} 11. Rac1 {[%emt 0:05:08]} h6 {[%emt 0:07:19]} 12. Rfd1 {[%emt 0:05:30]} Be6 {[%emt 0:09:10]} 13. Ne1 {[%emt 0:05:08]} Bf5 {[%emt 0:02:34]} 14. e4 {[%emt 0:01:28]} Bg4 {[%emt 0:00:08]} 15. f3 {[%emt 0:00:40]} Bc8 {[%emt 0:00:08]} 16. Nd3 {[%emt 0:01:16]} Nfd7 {[%emt 0:02:40]} 17. f4 {[%emt 0:03:47]} e5 {[%emt 0:00:30]} 18. c5 {[%emt 0:00:24]} dxc5 {[%emt 0:06:37]} 19. dxe5 {[%emt 0:01:09]} b5 {[%emt 0:00:11]} 20. e6 {[%emt 0:17:31]} Rxe6 {[%emt 0:01:10]} 21. Bxg7 {[%emt 0:00:22]} Kxg7 {[%emt 0:00:04]} 22. e5 {[%emt 0:00:07]} Na6 {[%emt 0:12:14]} 23. Ne4 {[%emt 0:01:04]} Ra7 {[%emt 0:01:47]} 24. Nd6 {[%emt 0:20:26]} Rc7 {[%emt 0:00:16]} 25. Bh3 {[%emt 0:00:16]} Re7 {[%emt 0:00:50]} 26. Bxd7 {[%emt 0:00:48]} Bxd7 {[%emt 0:00:39]} 27. Nxc5 {[%emt 0:00:06]} Nxc5 {[%emt 0:01:37]} 28. Rxc5 {[%emt 0:00:22]} Ra7 {[%emt 0:03:11]} 29. Ne4 {[%emt 0:00:14]} g5 {[%emt 0:08:25]} 30. fxg5 {[%emt 0:01:36]} hxg5 {[%emt 0:00:04]} 31. Nxg5 {[%emt 0:00:07]} a4 {[%emt 0:00:11]} 32. b4 {[%emt 0:01:15]} a3 {[%emt 0:00:05]} 33. h4 {[%emt 0:03:54]} Ra4 {[%emt 0:05:03]} 34. Rd4 {[%emt 0:00:50]} Bf5 {[%emt 0:02:21]} 35. Rxc6 {[%emt 0:05:24]} Bb1 {[%emt 0:03:18]} 36. h5 {[%emt 0:00:16]} Rxe5 {[%emt 0:02:33]} 37. h6+ {[%emt 0:00:36]} Kf8 {[%emt 0:00:01]} 38. Rc7 {[%emt 0:08:19]} Ke8 {[%emt 0:00:31]} 39. Nxf7 {[%emt 0:02:08]} 1-0

[Event "CZE Extraliga 2019-20"]
[Site "Czech Republic"]
[Date "2019.10.12"]
[Round "1.7"]
[White "Studnicka, Tomas"]
[Black "Hollan, Petr"]
[Result "1-0"]
[ECO "A46"]
[WhiteElo "2341"]
[BlackElo "2301"]
[Annotator "NA"]
[PlyCount "89"]
[EventDate "2019.09.15"]
[EventType "team-tourn"]
[EventCountry "CZE"]
[SourceTitle "playchess.com"]
[Source "ChessBase"]
[SourceQuality "1"]
[WhiteTeam "Turnov"]
[BlackTeam "Kromeriz"]
[TimeControl "40/5400+30:1800+30"]

1. d4 {[%emt 0:00:02]} Nf6 {[%emt 0:00:30]} 2. Nf3 {[%emt 0:00:05]} e6 {[%emt 0:01:54]} 3. Bf4 {[%emt 0:00:03]} c5 {[%emt 0:00:22]} 4. e3 {[%emt 0:00:02]} Nc6 {[%emt 0:00:06]} 5. c3 {[%emt 0:00:06]} d5 {[%emt 0:00:06]} 6. Nbd2 {[%emt 0:00:06]} cxd4 {[%emt 0:00:06]} 7. cxd4 {[%emt 0:06:16]} Nh5 {[%emt 0:13:51]} 8. Bg5 {[%emt 0:03:04]} f6 {[%emt 0:04:06]} 9. Bh4 {[%emt 0:01:16]} g6 {[%emt 0:00:11]} 10. Be2 {[%emt 0:01:28]} Be7 {[%emt 0:04:22]} 11. O-O {[%emt 0:03:55]} O-O {[%emt 0:00:31]} 12. a3 {[%emt 0:01:28]} g5 {[%emt 0:45:11]} 13. Ne1 {[%emt 0:03:49]} Ng7 {[%emt 0:00:16]} 14. Bg3 {[%emt 0:00:45]} e5 {[%emt 0:02:27]} 15. dxe5 {[%emt 0:04:53]} fxe5 {[%emt 0:00:19]} 16. Qb3 {[%emt 0:03:56]} Kh8 {[%emt 0:01:50]} 17. Rd1 {[%emt 0:03:28]} Nf5 {[%emt 0:12:56]} 18. Bf3 {[%emt 0:21:12]} Nxg3 {[%emt 0:01:37]} 19. hxg3 {[%emt 0:01:17]} d4 {[%emt 0:00:20]} 20. Bxc6 {[%emt 0:11:51]} bxc6 {[%emt 0:00:05]} 21. Nef3 {[%emt 0:00:15]} Bf6 {[%emt 0:03:36]} 22. exd4 {[%emt 0:01:18]} exd4 {[%emt 0:00:12]} 23. Ne4 {[%emt 0:02:10]} Bg4 {[%emt 0:02:45]} 24. Qc4 {[%emt 0:03:18]} Rc8 {[%emt 0:03:22]} 25. Nxf6 {[%emt 0:02:39]} Qxf6 {[%emt 0:00:08]} 26. Qxd4 {[%emt 0:00:12]} Qxd4 {[%emt 0:00:29]} 27. Rxd4 {[%emt 0:00:03]} Bxf3 {[%emt 0:00:05]} 28. gxf3 {[%emt 0:00:03]} Rxf3 {[%emt 0:00:06]} 29. Rd7 {[%emt 0:00:07]} Rb8 {[%emt 0:02:07]} 30. Kg2 {[%emt 0:00:18]} Rf6 {[%emt 0:00:20]} 31. b4 {[%emt 0:00:16]} Ra8 {[%emt 0:00:32]} 32. Re1 {[%emt 0:03:44]} Raf8 {[%emt 0:00:28]} 33. Ree7 {[%emt 0:00:04]} Rxf2+ {[%emt 0:00:38]} 34. Kh3 {[%emt 0:00:02]} g4+ {[%emt 0:00:31]} 35. Kxg4 {[%emt 0:00:20]} Rh2 {[%emt 0:00:13]} 36. Rxa7 {[%emt 0:01:21]} Rg8+ {[%emt 0:00:38]} 37. Kf4 {[%emt 0:04:08]} Rf2+ {[%emt 0:00:24]} 38. Ke5 {[%emt 0:00:27]} Re2+ {[%emt 0:00:46]} 39. Kd6 {[%emt 0:00:02]} Rxe7 {[%emt 0:00:18]} 40. Rxe7 {[%emt 0:00:02]} Rxg3 {[%emt 0:00:06]} 41. a4 {[%emt 0:34:46]} Rg4 {[%emt 0:13:53]} 42. Kc5 {[%emt 0:00:00]} h5 {[%emt 0:00:27]} 43. a5 {[%emt 0:00:00]} Rg5+ {[%emt 0:09:16]} 44. Kxc6 {[%emt 0:00:00]} h4 {[%emt 0:00:17]} 45. a6 {[%emt 0:00:00]} 1-0

[Event "CZE Extraliga 2019-20"]
[Site "Czech Republic"]
[Date "2019.10.12"]
[Round "1.7"]
[White "Zeman, Matyas"]
[Black "Kulhanek, Tomas"]
[Result "1/2-1/2"]
[ECO "C15"]
[WhiteElo "2247"]
[BlackElo "2343"]
[Annotator "NA"]
[PlyCount "90"]
[EventDate "2019.09.15"]
[EventType "team-tourn"]
[EventCountry "CZE"]
[SourceTitle "playchess.com"]
[Source "ChessBase"]
[SourceQuality "1"]
[TimeControl "40/5400+30:1800+30"]

1. e4 {[%emt 0:00:35]} e6 {[%emt 0:00:40]} 2. d4 {[%emt 0:01:12]} d5 {[%emt 0:00:35]} 3. Nc3 {[%emt 0:00:59]} Bb4 {[%emt 0:00:36]} 4. exd5 {[%emt 0:02:19]} exd5 {[%emt 0:00:45]} 5. Bd3 {[%emt 0:00:00]} c6 {[%emt 0:01:03]} 6. Nge2 {[%emt 0:00:00]} Ne7 {[%emt 0:06:09]} 7. O-O {[%emt 0:04:28]} Bf5 {[%emt 0:01:12]} 8. Ng3 {[%emt 0:00:29]} Bxd3 {[%emt 0:01:35]} 9. Qxd3 {[%emt 0:00:44]} O-O {[%emt 0:00:11]} 10. Nce2 {[%emt 0:00:55]} Na6 {[%emt 0:04:59]} 11. Nf4 {[%emt 0:10:47]} Bd6 {[%emt 0:06:06]} 12. Bd2 {[%emt 0:08:58]} Bxf4 {[%emt 0:08:04]} 13. Bxf4 {[%emt 0:00:54]} Ng6 {[%emt 0:00:15]} 14. Bd2 {[%emt 0:01:59]} Re8 {[%emt 0:02:53]} 15. f4 {[%emt 0:10:32]} f6 {[%emt 0:03:01]} 16. f5 {[%emt 0:01:20]} Nf8 {[%emt 0:00:50]} 17. Rf4 {[%emt 0:07:09]} Re7 {[%emt 0:04:38]} 18. Rg4 {[%emt 0:04:32]} Qe8 {[%emt 0:00:38]} 19. Rf1 {[%emt 0:09:38]} Kh8 {[%emt 0:01:58]} 20. Qf3 {[%emt 0:01:37]} Rd8 {[%emt 0:04:17]} 21. Rh4 {[%emt 0:05:20]} c5 {[%emt 0:15:06]} 22. dxc5 {[%emt 0:03:39]} Nxc5 {[%emt 0:01:17]} 23. Bb4 {[%emt 0:01:54]} b6 {[%emt 0:01:23]} 24. Qf2 {[%emt 0:07:01]} Nfd7 {[%emt 0:05:57]} 25. Qd4 {[%emt 0:02:09]} a5 {[%emt 0:03:43]} 26. Bc3 {[%emt 0:01:38]} Ne5 {[%emt 0:02:35]} 27. Rh3 {[%emt 0:04:34]} Nf7 {[%emt 0:05:41]} 28. Nh5 {[%emt 0:02:47]} Ng5 {[%emt 0:03:26]} 29. Nxf6 {[%emt 0:00:10]} Nxh3+ {[%emt 0:01:13]} 30. gxh3 {[%emt 0:00:01]} Qa4 {[%emt 0:03:10]} 31. b4 {[%emt 0:04:19]} axb4 {[%emt 0:06:36]} 32. Qh4 {[%emt 0:00:07]} g5 {[%emt 0:02:02]} 33. Nxd5+ {[%emt 0:01:04]} bxc3 {[%emt 0:00:07]} 34. Qxa4 {[%emt 0:00:02]} Nxa4 {[%emt 0:00:11]} 35. Nxe7 {[%emt 0:00:01]} Kg7 {[%emt 0:00:28]} 36. Nc6 {[%emt 0:02:29]} Rd5 {[%emt 0:01:46]} 37. Nb4 {[%emt 0:01:22]} Rd2 {[%emt 0:01:29]} 38. h4 {[%emt 0:00:43]} gxh4 {[%emt 0:00:19]} 39. Rf4 {[%emt 0:00:17]} h3 {[%emt 0:00:28]} 40. f6+ {[%emt 0:00:37]} Kf7 {[%emt 0:01:09]} 41. Nd3 {[%emt 0:06:59]} Nc5 {[%emt 0:01:59]} 42. Nxc5 {[%emt 0:02:03]} bxc5 {[%emt 0:00:01]} 43. Rf2 {[%emt 0:00:05]} Rd1+ {[%emt 0:00:06]} 44. Rf1 {[%emt 0:00:03]} Rd2 {[%emt 0:00:17]} 45. Rf2 {[%emt 0:00:04]} Rd1+ {[%emt 0:00:04]} 1/2-1/2